bitfinex/quotes_ETHUSD_20251230
["timestamp","ask_amount","ask_price","bid_price","bid_amount"]
[1767137959729,2.4653,2973.5,2972.9,2.3971]
[1767137969024,2.4673,2973.5,2972.9,2.3971]
[1767137969598,2.4653,2973.2,2972.5,0.001]
[1767137969798,2.4653,2973.0,2972.5,0.001]
[1767137970996,2.4653,2973.0,2972.5,2.409]
[1767137990470,2.4673,2973.0,2972.5,2.409]
[1767137990670,0.002,2973.0,2972.5,2.409]
[1767137990967,0.002,2973.0,2972.6,2.4775]
[1767137991266,0.002,2973.0,2972.5,0.6668226]
[1767137991267,0.002,2973.0,2972.8,2.4775]
[1767137991438,2.2883,2973.3,2972.9,0.883]
[1767137992334,2.2883,2973.3,2972.8,2.4775]
[1767137993851,2.2883,2973.3,2972.7,0.883]
[1767137993852,1.4073,2973.2,2972.7,0.883]
[1767137994065,1.63613,2973.2,2972.7,0.883]
[1767137995574,1.4073,2973.2,2972.7,0.883]
[1767137997976,1.4093,2973.2,2972.7,0.883]
[1767138000868,1.4093,2973.2,2972.7,3.3113]
[1767138005868,1.4093,2973.2,2972.7,0.883]
[1767138009761,1.4093,2973.2,2972.8,2.4283]
[1767138010783,0.002,2973.5,2972.9,2.4283]
[1767138010985,3.36276263,2973.8,2972.8,4.06498458]
[1767138010986,1.4073,2973.7,2973.1,2.4283]
[1767138011162,1.4073,2973.7,2972.7,2.4283]
[1767138011565,4.45072561,2973.6,2972.7,2.4283]
[1767138011767,4.45072561,2973.6,2972.5,2.4293]
[1767138011768,3.36315329,2973.4,2972.5,2.4293]
[1767138012066,0.5233,2973.2,2972.5,2.4293]
[1767138013861,0.5233,2973.2,2972.6,2.4283]
[1767138014062,0.5233,2973.4,2972.6,2.46194058]
[1767138014295,0.002,2973.2,2972.6,2.46194058]
[1767138016895,0.002,2973.2,2972.6,2.4283]
[1767138017402,0.002,2973.2,2972.6,2.46194058]
[1767138017967,0.5233,2973.1,2972.6,2.4283]
[1767138020341,0.5233,2973.1,2972.5,0.001]
[1767138021081,0.5233,2973.1,2972.5,2.4528]
[1767138038630,0.5243,2973.1,2972.5,2.4528]
[1767138041133,2.2954,2973.8,2972.6,2.4518]
[1767138041311,2.2954,2973.6,2972.7,2.4518]
[1767138041837,4.45021982,2973.5,2972.7,2.4518]
[1767138042037,2.74042198,2973.4,2972.7,2.4518]
[1767138042325,2.74042198,2973.4,2972.5,2.4528]
[1767138042326,2.2954,2973.2,2972.5,2.4528]
[1767138042702,2.2954,2973.2,2972.6,2.4518]
[1767138046628,2.2964,2973.2,2972.6,2.4518]
[1767138061956,2.2964,2973.2,2972.7,0.03363945]
[1767138062158,2.2964,2973.2,2972.8,2.3493]
[1767138071763,2.3477,2973.4,2973.0,2.3493]
[1767138071969,2.3477,2973.7,2973.0,2.3493]
[1767138073573,2.3477,2973.6,2973.0,2.3493]
[1767138083904,2.3477,2973.6,2972.8,0.23829406]
[1767138084052,3.36320731,2973.4,2972.5,2.2826]
[1767138084255,2.3689,2973.3,2972.5,2.2826]
[1767138085065,2.3689,2973.3,2972.8,0.001]
[1767138087585,2.3689,2973.2,2972.8,0.001]
[1767138087787,0.57321757,2973.1,2972.8,0.001]
[1767138088082,2.3689,2973.0,2972.8,0.001]
[1767138089895,2.3689,2973.3,2972.8,0.001]
[1767138090380,2.3689,2973.3,2972.8,2.2826]
[1767138109115,2.3709,2973.3,2972.8,2.2826]
[1767138118621,2.3709,2973.3,2972.9,2.38903718]
[1767138118794,2.3709,2973.3,2972.9,2.3554]
[1767138119000,0.002,2973.6,2972.9,2.3554]
[1767138119202,2.3787,2973.5,2972.9,2.3554]
[1767138126141,2.3807,2973.5,2972.9,2.3554]
[1767138126314,2.3807,2973.5,2973.1,2.4809]
[1767138126500,0.002,2973.6,2973.1,2.4809]
[1767138126697,0.2309,2973.6,2973.1,2.4809]
[1767138127003,0.2289,2973.5,2973.1,2.4809]
[1767138127827,0.2289,2973.4,2972.8,0.001]
[1767138129434,0.2289,2973.3,2972.5,0.001]
[1767138130406,0.2289,2973.3,2972.5,2.4819]
[1767138131217,0.2279,2973.2,2972.5,2.4819]
[1767138133440,0.2279,2973.2,2972.8,0.001]
[1767138133609,0.2279,2973.1,2972.8,0.001]
[1767138134542,0.2279,2973.1,2972.5,2.4819]
[1767138134731,0.2279,2973.1,2972.4,0.001]
[1767138135422,0.2279,2973.1,2972.4,2.4819]
[1767138146677,0.2279,2973.1,2972.5,2.4321]
[1767138146849,0.2259,2973.3,2972.7,2.4321]
[1767138147587,0.2259,2973.3,2972.7,2.46573945]
[1767138149853,0.2259,2973.3,2972.7,2.4321]
[1767138158176,0.2259,2973.2,2972.6,0.002]
[1767138158346,0.2259,2973.0,2972.4,2.4331]
[1767138174994,0.2269,2973.0,2972.4,2.4331]
[1767138175293,0.2269,2973.0,2972.4,0.001]
[1767138181099,0.2269,2973.0,2972.4,2.4428]
[1767138189469,0.2269,2973.0,2972.2,0.001]
[1767138189685,0.2219,2972.8,2972.2,0.001]
[1767138189884,0.2219,2972.8,2972.2,2.4428]
[1767138191079,0.2219,2972.8,2972.4,0.002]
[1767138200020,0.2219,2972.8,2972.3,2.4418]
[1767138205717,0.2219,2972.8,2972.3,2.4438]
[1767138205917,0.2229,2972.8,2972.3,2.4438]
[1767138213929,0.2229,2972.8,2972.3,0.002]
[1767138222937,0.2209,2973.0,2972.4,2.4565]
[1767138223137,0.2209,2973.0,2972.6,2.4565]
[1767138229041,0.2209,2973.0,2972.4,2.3784]
[1767138233542,0.2209,2973.0,2972.3,0.58451159]
[1767138233948,0.2209,2973.0,2972.4,0.38479116]
[1767138240445,0.2209,2973.0,2972.4,2.82149116]
[1767138240825,0.2209,2973.0,2972.4,0.38479116]
[1767138241030,0.2209,2973.0,2972.3,2.4387]
[1767138256978,0.2209,2973.0,2972.4,2.4631]
[1767138259852,0.002,2973.1,2972.6,2.4631]
[1767138260057,0.2219,2973.1,2972.6,2.4631]
[1767138267360,0.2219,2973.1,2972.3,7.81732836]
[1767138267672,0.2219,2973.1,2972.3,3.80411582]
[1767138271278,0.2219,2973.1,2972.3,2.4651]
[1767138271781,0.2219,2973.1,2972.4,0.03364284]
[1767138272353,0.2219,2973.1,2972.4,2.49674284]
[1767138272978,0.2219,2973.1,2972.4,2.4631]
[1767138273280,0.2219,2973.1,2972.4,2.4641]
[1767138274284,0.2199,2973.0,2972.4,2.4641]
[1767138279187,0.2199,2973.0,2972.4,2.49774284]
[1767138279384,0.2199,2973.0,2972.4,2.4641]
[1767138288294,0.2209,2973.0,2972.4,2.4641]
[1767138310641,4.45101,2972.8,2972.0,4.59299486]
[1767138310780,0.2169,2972.6,2972.0,3.58788154]
[1767138310989,0.2169,2972.6,2972.0,2.2656]
[1767138311314,0.2169,2972.6,2972.0,5.63032232]
[1767138312004,0.2169,2972.6,2972.1,2.2656]
[1767138316409,0.2169,2972.6,2972.1,5.63021263]
[1767138316592,0.2169,2972.6,2972.2,2.352]
[1767138317883,0.2149,2972.9,2972.2,2.352]
[1767138318789,0.2149,2972.9,2972.3,2.352]
[1767138319118,4.24332453,2973.3,2972.6,2.352]
[1767138319292,0.42453245,2973.2,2972.6,2.352]
[1767138319692,0.002,2973.0,2972.6,2.352]
[1767138345449,0.002,2973.0,2972.5,0.001]
[1767138349039,0.002,2973.0,2972.1,0.001]
[1767138349354,0.002,2973.0,2972.5,0.001]
[1767138352758,0.43757683,2972.9,2972.5,0.001]
[1767138364973,0.002,2973.0,2972.5,2.3395]
[1767138365172,3.36560596,2973.0,2972.5,0.001]
[1767138378008,0.002,2973.0,2972.5,0.001]
[1767138380524,0.002,2973.0,2972.5,4.45201369]
[1767138381997,0.002,2973.0,2972.5,0.001]
[1767138382202,0.42693997,2973.0,2972.5,0.001]
[1767138384933,3.79056113,2973.0,2972.5,0.001]
[1767138385402,0.42693997,2973.0,2972.5,0.001]
[1767138392349,3.79058502,2973.0,2972.5,0.001]
[1767138392513,7.15423007,2973.0,2972.5,0.001]
[1767138392712,1.16052438,2972.9,2972.5,0.001]
[1767138394438,4.52433673,2972.9,2972.5,0.001]
[1767138400860,4.52633673,2972.9,2972.5,0.001]
[1767138401070,7.89014908,2972.9,2972.5,0.001]
[1767138401565,1.01035785,2972.8,2972.5,0.001]
[1767138401775,1.77405069,2972.7,2972.5,0.001]
[1767138403139,5.1380704,2972.7,2972.5,0.001]
[1767138404740,1.77405069,2972.7,2972.5,0.001]
[1767138410863,9.58904083,2972.7,2972.1,0.001]
[1767138411054,0.95890408,2972.6,2972.1,0.001]
[1767138413587,4.32306791,2972.6,2972.1,0.001]
[1767138415190,4.45101369,2972.5,2972.1,0.001]
[1767138415488,7.68723174,2972.6,2972.1,0.001]
[1767138415793,7.82196245,2972.6,2972.1,0.001]
[1767138415969,1.31569761,2972.5,2972.1,0.001]
[1767138418381,3.36428475,2972.4,2972.1,0.001]
[1767138419374,4.67991296,2972.5,2972.1,0.001]
[1767138420383,4.67991296,2972.5,2971.6,0.001]
[1767138420384,0.0166,2972.2,2971.3,0.001]
[1767138420695,3.36439794,2972.3,2971.3,0.001]
[1767138420696,0.0166,2972.0,2971.3,0.001]
[1767138421387,0.0166,2972.0,2971.2,0.002]
[1767138421873,0.0166,2972.0,2971.2,2.3858]
[1767138422287,0.0166,2972.0,2971.2,6.83681369]
[1767138422484,0.0156,2971.9,2971.2,6.83681369]
[1767138423699,0.0156,2971.8,2971.2,6.83681369]
[1767138429991,0.0156,2971.8,2971.2,4.43741369]
[1767138431591,0.0156,2971.8,2971.1,0.002]
[1767138431781,0.0156,2971.8,2971.1,2.3858]
[1767138432093,0.002,2972.7,2971.7,4.45101369]
[1767138432264,0.002,2972.7,2971.9,4.45101369]
[1767138432590,0.884,2972.6,2972.1,4.45101369]
[1767138433492,0.884,2972.5,2972.1,4.45101369]
[1767138433692,0.002,2972.9,2972.3,4.45101369]
[1767138433897,3.70252639,2972.9,2972.3,4.45101369]
[1767138434100,7.95028398,2972.9,2972.3,4.45101369]
[1767138434768,7.95028398,2972.9,2972.1,4.45101369]
[1767138434965,4.24975759,2972.9,2972.1,6.83481369]
[1767138441007,4.24975759,2972.9,2972.3,4.45101369]
[1767138442499,4.24975759,2972.9,2972.1,2.3838]
[1767138445426,7.61351518,2972.9,2971.8,2.3869]
[1767138453919,7.61351518,2972.9,2971.8,2.3879]
[1767138454120,0.76155152,2972.8,2971.8,3.07187874]
[1767138455622,0.76155152,2972.8,2971.8,0.68497874]
[1767138455851,0.76155152,2972.8,2971.9,2.3869]
[1767138457423,3.36394523,2972.7,2971.9,2.3869]
[1767138459125,4.12543743,2972.8,2971.9,2.3869]
[1767138459307,4.12543743,2972.8,2971.9,3.03059183]
[1767138459510,4.12543743,2972.8,2971.9,0.64369183]
[1767138459826,4.12543743,2972.8,2972.0,2.3869]
[1767138460031,0.884,2972.7,2972.0,2.42054737]
[1767138460340,0.002,2972.9,2972.3,6.83878738]
[1767138461531,3.36573677,2972.9,2972.3,6.83878738]
[1767138464722,3.36573677,2972.9,2972.3,2.3869]
[1767138464919,0.002,2972.9,2972.3,2.3869]
[1767138465123,0.002,2972.9,2972.5,2.3869]
[1767138468028,0.002,2972.9,2972.4,0.23869]
[1767138469256,0.002,2972.9,2972.3,2.4771]
[1767138470659,0.002,2972.9,2972.0,2.4791]
[1767138472257,0.002,2972.9,2972.0,0.002]
[1767138476146,0.884,2972.8,2972.0,2.4791]
[1767138476479,0.884,2972.8,2972.1,2.4771]
[1767138477055,3.36394523,2972.7,2972.0,4.45388738]
[1767138477372,3.36388305,2972.8,2972.1,2.4771]
[1767138478270,3.36575899,2972.9,2972.1,2.4771]
[1767138479172,0.002,2972.9,2972.1,2.4771]
[1767138480083,0.002,2972.9,2972.0,4.89957612]
[1767138480084,0.002,2972.9,2972.4,2.4866]
[1767138480756,0.002,2972.9,2972.0,4.89957612]
[1767138480956,0.002,2972.9,2972.1,2.97675761]
[1767138487394,0.002,2973.3,2972.9,4.45188738]
[1767138487557,0.002,2973.7,2973.0,2.4866]
[1767138487874,3.36303604,2973.6,2973.0,2.4866]
[1767138488183,3.364868,2973.7,2973.0,2.4866]
[1767138488359,0.3364868,2973.6,2973.0,2.4866]
[1767138489081,3.36441131,2974.1,2973.2,6.93848738]
[1767138489082,0.002,2974.1,2973.2,6.93848738]
[1767138489279,0.002,2974.1,2973.3,2.4866]
[1767138496690,0.002,2974.1,2973.2,0.884]
[1767138497480,0.002,2974.1,2973.2,3.1611]
[1767138498485,0.002,2974.1,2973.2,3.47721]
[1767138498984,0.002,2974.1,2973.3,2.2771]
[1767138504281,0.002,2974.1,2973.3,2.2781]
[1767138505384,0.002,2974.1,2973.3,0.001]
[1767138517596,4.45082367,2974.1,2973.3,0.001]
[1767138517778,0.44528237,2974.0,2973.3,0.001]
[1767138518382,0.002,2974.1,2973.3,0.001]
[1767138528406,4.45082367,2974.1,2973.3,0.001]
[1767138530952,6.72494956,2974.0,2973.3,0.001]
[1767138542111,6.72694956,2974.0,2973.3,0.001]
[1767138542309,4.44882367,2973.9,2973.3,0.001]
[1767138542485,4.44882367,2973.5,2972.6,2.3756]
[1767138542684,4.44882367,2973.3,2972.6,2.3756]
[1767138543293,4.44882367,2973.5,2972.6,2.3756]
[1767138543915,3.36315329,2973.4,2972.6,2.3756]
[1767138544216,3.36308748,2973.5,2972.6,2.70146]
[1767138544920,3.3628605,2973.7,2972.9,2.3756]
[1767138545121,6.725721,2973.7,2972.9,2.3756]
[1767138548325,6.72517568,2973.9,2972.9,2.3756]
[1767138549025,6.72517568,2973.9,2972.9,2.3766]
[1767138552222,6.72517568,2973.9,2972.9,2.41023718]
[1767138552411,3.362814,2973.7,2972.9,2.3766]
[1767138552712,6.725628,2973.7,2972.9,2.3766]
[1767138553028,3.362814,2973.7,2973.1,2.3756]
[1767138554017,4.12377456,2973.8,2973.3,2.3756]
[1767138554206,3.36275699,2973.8,2973.3,2.3756]
[1767138555418,0.002,2974.0,2973.3,2.3756]
[1767138557025,0.002,2973.7,2973.3,2.3756]
[1767138570234,0.002,2973.7,2972.9,0.884]
[1767138570413,0.002,2973.7,2973.0,2.3715]
[1767138570610,0.002,2973.7,2973.2,2.3715]
[1767138571730,0.002,2973.7,2973.3,0.001]
[1767138572035,0.002,2973.7,2973.3,2.3725]
[1767138602659,0.002,2974.0,2973.4,2.3973]
[1767138605269,0.002,2973.7,2973.4,2.3973]
[1767138605471,0.002,2973.7,2973.5,0.23983]
[1767138611464,0.002,2973.7,2973.5,0.24083]
[1767138621585,0.002,2973.7,2973.5,2.54513]
[1767138626284,0.002,2973.7,2973.5,0.24083]
[1767138626478,0.002,2973.7,2973.5,0.001]
[1767138632687,0.002,2974.1,2973.6,4.44824652]
[1767138632855,0.002,2974.1,2973.5,2.3053]
[1767138633480,0.002,2973.7,2973.5,2.3053]
[1767138633681,0.002,2974.1,2973.5,2.3053]
[1767138633870,0.002,2974.1,2973.5,2.62423]
[1767138636399,0.002,2974.1,2973.7,2.3043]
[1767138638288,0.002,2974.3,2973.6,2.3043]
[1767138639901,0.002,2974.1,2973.6,2.3043]
[1767138640492,0.002,2974.3,2973.7,2.33792814]
[1767138640691,0.002,2974.3,2973.9,2.3043]
[1767138665891,0.002,2974.3,2973.9,2.3053]
[1767138677940,0.001,2974.8,2974.0,2.4249]
[1767138680710,0.002,2974.3,2974.0,2.4249]
[1767138681110,0.002,2974.3,2974.1,0.03362361]
[1767138681313,0.002,2974.3,2974.2,2.4249]
[1767138681511,0.002,2974.3,2974.2,2.67075236]
[1767138684811,0.001,2974.8,2974.2,2.67075236]
[1767138687245,0.001,2974.8,2974.4,2.4249]
[1767138689320,3.34378003,2975.3,2974.4,2.4249]
[1767138689514,0.883,2975.7,2974.6,2.4249]
[1767138689742,3.3621366,2976.1,2974.8,2.4249]
[1767138689932,3.3621366,2976.1,2974.9,2.4249]
[1767138690137,4.2451366,2976.1,2974.9,2.4249]
[1767138691544,6.7214301,2976.0,2974.9,2.4249]
[1767138692659,10.08164515,2976.0,2974.9,2.4249]
[1767138693556,3.36121505,2976.0,2974.9,2.4249]
[1767138694552,0.001,2976.0,2974.9,2.4249]
[1767138698859,0.001,2976.0,2975.1,2.4249]
[1767138701034,0.001,2976.0,2974.9,2.4249]
[1767138702569,0.001,2976.0,2974.9,2.4259]
[1767138702752,0.001,2976.0,2975.0,2.75579]
[1767138703064,0.001,2976.0,2975.0,0.33089]
[1767138704855,0.001,2976.0,2975.0,2.75579]
[1767138705169,0.001,2976.0,2975.1,2.45851231]
[1767138705778,0.001,2976.0,2975.1,2.4249]
[1767138706083,0.001,2976.0,2975.3,2.4249]
[1767138709279,0.001,2976.0,2975.2,0.275579]
[1767138709458,0.001,2976.0,2975.1,2.4343]
[1767138711247,6.69730967,2976.4,2975.3,2.4343]
[1767138711447,6.69730967,2976.4,2974.9,0.001]
[1767138711448,6.69730967,2976.4,2975.5,2.4343]
[1767138711778,6.69730967,2976.4,2975.6,0.883]
[1767138712075,6.69730967,2976.4,2975.7,0.33173]
[1767138713282,0.002,2976.5,2975.7,0.33173]
[1767138715073,0.0216,2976.1,2975.4,0.883]
[1767138715273,3.36021505,2976.0,2975.4,0.883]
[1767138715599,3.36021505,2976.0,2975.4,0.33173]
[1767138715600,6.7204301,2976.0,2975.4,0.33173]
[1767138715756,6.7204301,2976.0,2975.2,2.4343]
[1767138715958,6.7204301,2976.0,2975.2,3.3173]
[1767138716158,6.7204301,2976.0,2975.2,0.883]
[1767138717268,6.72020428,2976.1,2975.0,3.3173]
[1767138717470,8.17282648,2976.1,2975.1,0.33183]
[1767138720260,8.17282648,2976.1,2975.0,3.3173]
[1767138720459,4.44609045,2975.9,2974.9,0.001]
[1767138722387,6.72088176,2975.8,2974.9,0.001]
[1767138731801,6.72071276,2975.9,2974.9,0.001]
[1767138732105,0.76037128,2975.8,2974.9,0.001]
[1767138733110,0.76037128,2975.8,2974.9,2.3323]
[1767138734109,6.72110762,2975.7,2974.9,2.3323]
[1767138751518,4.44435664,2975.4,2974.9,0.001]
[1767138753706,3.36100561,2975.3,2974.9,0.001]
[1767138753912,7.50254745,2975.3,2974.9,0.001]
[1767138756314,4.14154184,2975.3,2974.9,0.001]
[1767138780467,7.50254745,2975.3,2974.9,0.001]
[1767138780871,4.14154184,2975.3,2974.9,0.001]
[1767138782169,4.44435664,2975.1,2974.1,2.3975]
[1767138782475,6.72268906,2975.0,2974.2,3.2805]
[1767138782773,6.72268906,2975.0,2974.3,2.3975]
[1767138783640,3.36134453,2975.0,2974.3,2.3975]
[1767138783842,4.10864997,2975.0,2974.3,2.3975]
[1767138785748,7.4699945,2975.0,2974.3,2.3975]
[1767138789780,7.4699945,2975.0,2974.2,0.883]
[1767138790563,7.4699945,2975.0,2974.2,3.2805]
[1767138791271,7.4699945,2975.0,2974.3,2.3975]
[1767138791589,0.74699945,2974.9,2974.3,2.3975]
[1767138791984,3.36157052,2974.8,2974.3,2.3975]
[1767138792197,6.72314104,2974.8,2974.3,2.3975]
[1767138792961,3.36157052,2974.8,2974.3,2.3975]
[1767138795315,3.36157052,2974.8,2974.2,0.883]
[1767138795922,3.36157052,2974.8,2974.2,3.2805]
[1767138796423,7.47034697,2974.8,2974.1,0.001]
[1767138796593,4.44435664,2974.7,2974.1,0.001]
[1767138796788,7.47034697,2974.8,2974.1,0.001]
[1767138821467,7.47034697,2974.8,2974.1,2.3024]
[1767138821632,0.7472347,2974.7,2974.1,2.3024]
[1767138823670,3.36179654,2974.6,2974.1,2.3024]
[1767138823973,6.72359308,2974.6,2974.1,2.3024]
[1767138825779,6.72359308,2974.6,2974.1,0.001]
[1767138829152,3.36179654,2974.6,2974.1,0.001]
[1767138829367,3.77269966,2974.6,2974.1,0.001]
[1767138834498,3.77269966,2974.6,2973.7,0.86277442]
[1767138834684,4.44744711,2974.5,2973.6,2.3175]
[1767138834878,4.44744711,2974.5,2973.5,0.001]
[1767138835087,1.49437399,2974.4,2973.5,0.001]
[1767138835275,1.49437399,2974.4,2973.5,2.3185]
[1767138835979,7.1344962,2974.6,2973.5,2.3185]
[1767138837114,7.1344962,2974.6,2973.9,2.3175]
[1767138840533,7.1344962,2974.6,2973.9,2.3185]
[1767138841032,6.72314104,2974.8,2973.9,2.3185]
[1767138842028,3.36157052,2974.8,2974.2,2.3293]
[1767138843122,0.002,2974.9,2974.2,2.3293]
[1767138843522,0.002,2974.9,2974.3,2.3293]
[1767138843728,0.002,2974.9,2974.4,2.3293]
[1767138878663,0.002,2974.9,2974.2,3.1369]
[1767138878858,0.002,2974.9,2974.2,7.58225445]
[1767138879291,0.002,2974.9,2974.3,2.2539]
[1767138894013,0.002,2975.4,2974.8,2.481]
[1767138894314,0.002,2974.9,2974.8,2.481]
[1767138894512,0.002,2975.4,2974.8,2.481]
[1767138894715,0.002,2975.4,2974.9,4.44535445]
[1767138894910,0.002,2975.4,2974.9,6.92635445]
[1767138895114,0.002,2975.4,2974.9,2.481]
[1767138895318,0.002,2975.4,2975.0,2.481]
[1767138906122,0.002,2975.4,2974.9,0.69263545]
[1767138912761,0.002,2975.4,2974.9,2.95773545]
[1767138915568,0.002,2975.4,2974.9,2.2651]
[1767138923592,0.002,2975.4,2974.9,2.2661]
[1767138925700,0.002,2975.4,2974.9,0.001]
[1767138968772,0.002,2975.4,2974.9,2.4001]
[1767138993413,0.002,2975.7,2974.9,2.4001]
[1767138993414,0.002,2975.7,2975.0,2.4114]
[1767138993714,0.002,2975.7,2975.2,2.4114]
[1767138994487,0.002,2975.8,2975.2,2.4114]
[1767138994683,3.36245334,2975.8,2975.2,2.4114]
[1767138995319,0.002,2975.4,2975.2,2.4114]
[1767138995528,0.002,2975.4,2975.3,2.676664]
[1767138998733,0.002,2975.8,2975.3,0.265264]
[1767138999033,0.002,2975.8,2975.4,2.4114]
[1767139002032,0.002,2975.7,2975.4,2.4114]
[1767139004548,0.002,2975.8,2975.3,0.001]
[1767139004744,0.002,2976.1,2975.4,2.4114]
[1767139008259,0.012,2976.1,2975.6,4.44312779]
[1767139008559,0.002,2976.1,2975.7,2.75367356]
[1767139012771,0.012,2976.4,2975.7,0.44767356]
[1767139012925,0.012,2976.4,2975.8,2.306]
[1767139016333,0.002,2976.1,2975.8,2.306]
[1767139035859,0.002,2976.5,2975.6,0.001]
[1767139035860,2.3828,2976.7,2976.0,2.496]
[1767139036064,2.3828,2976.7,2976.1,2.8339]
[1767139042993,2.4519,2976.6,2976.1,2.8339]
[1767139044380,0.002,2976.7,2976.1,2.8339]
[1767139045669,3.36122678,2976.9,2976.3,2.3996]
[1767139045882,3.35900951,2977.1,2976.5,2.3996]
[1767139046081,6.39220046,2977.1,2976.5,2.3996]
[1767139046780,0.002,2976.7,2976.5,2.3996]
[1767139047183,5.81264785,2977.3,2976.6,2.3996]
[1767139047401,2.4519,2977.2,2976.6,2.3996]
[1767139049401,5.81087349,2977.1,2976.6,2.3996]
[1767139050191,2.4519,2977.0,2976.6,2.3996]
[1767139050491,2.4519,2976.6,2976.0,2.3996]
[1767139050677,2.4519,2976.6,2976.1,2.3996]
[1767139051402,2.4519,2976.4,2976.1,2.3996]
[1767139054504,5.81166668,2976.4,2976.1,2.3996]
[1767139054705,2.4519,2976.4,2976.1,2.3996]
[1767139056009,2.4519,2976.3,2976.0,0.001]
[1767139056771,2.4519,2976.3,2976.0,2.4006]
[1767139057076,2.4519,2976.3,2976.0,2.72896]
[1767139058379,2.4519,2976.7,2976.0,2.72896]
[1767139060409,3.35953772,2976.6,2976.0,2.72896]
[1767139060706,5.81143772,2976.6,2976.0,2.72896]
[1767139061108,3.35946367,2976.7,2976.0,2.72896]
[1767139061308,3.35946367,2976.7,2976.2,2.3996]
[1767139061981,3.36146367,2976.7,2976.2,2.3996]
[1767139062306,3.35936191,2976.8,2976.4,2.3996]
[1767139062808,3.35925341,2976.9,2976.4,2.3996]
[1767139064106,3.35913303,2977.0,2976.4,2.3996]
[1767139064313,3.35913303,2977.0,2976.6,2.3996]
[1767139067907,8.99596606,2977.0,2976.6,2.3996]
[1767139069216,8.99796606,2977.0,2976.6,2.3996]
[1767139071312,8.99796606,2977.0,2976.5,0.23996]
[1767139071313,2.2777,2976.9,2976.5,0.23996]
[1767139071496,2.2777,2976.9,2976.4,2.263]
[1767139075788,3.35931201,2976.8,2976.4,2.263]
[1767139077291,3.35931201,2976.8,2976.4,2.264]
[1767139078619,2.2777,2976.8,2976.4,0.001]
[1767139080327,3.35942486,2976.7,2976.4,0.001]
[1767139080506,5.73332486,2976.7,2976.4,0.001]
[1767139082899,2.3739,2976.6,2976.4,0.001]
[1767139083533,2.3739,2976.6,2976.0,2.3882]
[1767139084029,2.3739,2976.6,2976.0,3.2702]
[1767139084621,3.35964682,2976.6,2976.0,3.2702]
[1767139084827,2.3739,2976.5,2976.0,3.2702]
[1767139085711,2.3739,2976.5,2976.4,0.001]
[1767139087119,2.3739,2976.5,2976.1,2.3872]
[1767139089114,5.73358659,2976.5,2976.1,2.3872]
[1767139094030,5.73558659,2976.5,2976.1,2.3872]
[1767139095209,2.3759,2976.5,2976.1,2.3872]
[1767139095623,5.73555594,2976.5,2976.1,2.3872]
[1767139096122,2.3759,2976.5,2976.1,2.3872]
[1767139097336,5.73556453,2976.5,2976.1,2.3872]
[1767139097527,2.3759,2976.5,2976.1,2.3872]
[1767139099940,5.73555146,2976.5,2976.1,2.3872]
[1767139101544,2.3759,2976.5,2976.1,2.3872]
[1767139101922,5.73555523,2976.5,2976.1,2.3872]
[1767139102545,2.3759,2976.5,2976.1,2.3872]
[1767139102733,5.73555522,2976.5,2976.1,2.3872]
[1767139104148,2.3759,2976.5,2976.1,2.3872]
[1767139115544,0.002,2976.5,2976.1,2.3872]
[1767139115746,2.3954,2976.5,2976.1,2.3872]
[1767139116562,3.35947633,2976.7,2976.0,0.883]
[1767139116808,2.3934,2976.8,2976.1,2.3679]
[1767139119865,3.35942486,2976.7,2976.1,2.3679]
[1767139120268,5.75282486,2976.7,2976.1,2.3679]
[1767139125572,3.35942486,2976.7,2976.1,2.69299]
[1767139126074,0.002,2976.8,2976.2,2.3679]
[1767139126373,3.36131201,2976.8,2976.2,2.3679]
[1767139129980,2.4239,2976.8,2976.2,2.3679]
[1767139131983,3.35942486,2976.7,2976.2,2.3679]
[1767139133058,5.78132486,2976.7,2976.2,2.3679]
[1767139137783,2.4219,2976.7,2976.2,2.3679]
[1767139138280,2.4219,2976.7,2976.2,2.725499]
[1767139139484,5.78133943,2976.7,2976.2,2.725499]
[1767139140885,2.3155,2976.7,2976.2,2.725499]
[1767139141067,2.3155,2976.7,2976.2,2.3679]
[1767139142503,2.3155,2976.7,2976.1,0.882]
[1767139142789,2.3155,2976.7,2976.1,3.152]
[1767139143090,2.3155,2976.5,2976.1,3.152]
[1767139144488,5.6749699,2976.7,2976.2,2.27]
[1767139144788,2.3155,2976.6,2976.2,2.27]
[1767139147791,5.67505356,2976.6,2976.2,2.27]
[1767139148993,3.35955356,2976.6,2976.2,2.27]
[1767139149197,2.3155,2976.5,2976.2,2.27]
[1767139149365,2.3155,2976.5,2976.1,0.882]
[1767139149862,2.3155,2976.5,2976.1,3.152]
[1767139150293,5.67517369,2976.5,2976.1,3.152]
[1767139150496,2.3155,2976.5,2976.1,3.152]
[1767139150791,2.3155,2976.5,2976.1,0.882]
[1767139150966,2.3155,2976.5,2976.2,2.27]
[1767139151301,5.67696297,2976.7,2976.2,2.27]
[1767139153493,2.3155,2976.6,2976.1,0.882]
[1767139154558,3.35956609,2976.6,2976.1,3.152]
[1767139154793,2.3155,2976.5,2976.1,3.152]
[1767139156590,2.3935,2976.4,2976.0,0.001]
[1767139156897,2.3935,2976.4,2975.8,0.001]
[1767139156898,2.3935,2976.3,2975.8,0.001]
[1767139157586,2.3935,2976.3,2975.9,2.3948]